[Event "ESTCC U65 2018"]
[Site "Walbrzych"]
[Date "2018.04.14"]
[Round "1"]
[White "Andersson, Kenneth"]
[Black "Carlsten, Peter"]
[Result "1/2-1/2"]
[ECO "A04"]
[WhiteElo "1763"]
[BlackElo "2010"]
[Annotator "NA"]
[PlyCount "65"]
[EventDate "2018.??.??"]
[EventCountry "POL"]
[SourceTitle "playchess.com"]
[Source "ChessBase"]
[SourceQuality "1"]
[WhiteTeam "Sweden"]
[BlackTeam "Sweden"]
[WhiteTeamCountry "SWE"]
[BlackTeamCountry "SWE"]
[TimeControl "40/5400+30:1800+30"]

1. Nf3 {[%emt 0:00:00]} f5 {[%emt 0:00:12]} 2. d4 {[%emt 0:00:12]} Nf6 {[%emt 0:00:15]} 3. e3 {[%emt 0:04:00]} g6 {[%emt 0:00:34]} 4. Bc4 {[%emt 0:02:04]} Bg7 {[%emt 0:03:42]} 5. Nbd2 {[%emt 0:04:23]} Nc6 {[%emt 0:04:01]} 6. b3 {[%emt 0:06:27]} Na5 {[%emt 0:01:59]} 7. Bd3 {[%emt 0:00:55]} O-O {[%emt 0:00:18]} 8. Bb2 {[%emt 0:00:25]} d6 {[%emt 0:04:09]} 9. c4 {[%emt 0:01:31]} e5 {[%emt 0:07:39]} 10. dxe5 {[%emt 0:03:31]} Ng4 {[%emt 0:00:50]} 11. O-O {[%emt 0:01:53]} Nc6 {[%emt 0:02:27]} 12. Be2 {[%emt 0:04:40]} Ngxe5 {[%emt 0:02:05]} 13. Nxe5 {[%emt 0:01:30]} Nxe5 {[%emt 0:03:05]} 14. Qc2 {[%emt 0:01:18]} Qe7 {[%emt 0:01:03]} 15. Rad1 {[%emt 0:01:52]} b6 {[%emt 0:05:39]} 16. Bxe5 {[%emt 0:16:52]} Bxe5 $14 {[%emt 0:08:18]} 17. Bf3 {[%emt 0:00:32]} Rb8 {[%emt 0:00:10]} 18. Bd5+ {[%emt 0:01:18]} Kh8 {[%emt 0:02:54]} 19. Nf3 {[%emt 0:05:35]} Bg7 {[%emt 0:01:47]} 20. Nd4 {[%emt 0:00:31]} Bd7 {[%emt 0:00:38]} 21. Nc6 {[%emt 0:01:09]} Bxc6 {[%emt 0:00:05]} 22. Bxc6 {[%emt 0:00:15]} a5 {[%emt 0:03:47]} 23. Rfe1 {[%emt 0:01:14]} Qf6 {[%emt 0:05:08]} 24. h3 {[%emt 0:01:29]} Rf7 {[%emt 0:01:54]} 25. Re2 {[%emt 0:02:00]} Re7 {[%emt 0:01:50]} 26. Rde1 {[%emt 0:00:55]} Re5 {[%emt 0:03:10]} 27. Qd3 {[%emt 0:01:11]} Rc5 {[%emt 0:01:06]} 28. Bf3 {[%emt 0:03:23]} Re8 {[%emt 0:01:27]} 29. g3 {[%emt 0:03:27]} Re7 {[%emt 0:04:01]} 30. Kg2 {[%emt 0:02:48]} Rce5 {[%emt 0:04:02]} 31. Bd5 {[%emt 0:00:43]} Re8 {[%emt 0:02:04]} 32. Bc6 {[%emt 0:01:13]} Ra8 33. Qd1 1/2-1/2

[Event "ESTCC U65 2018"]
[Site "Walbrzych"]
[Date "2018.04.14"]
[Round "1"]
[White "Heikkila, Raine"]
[Black "White, Alastair F"]
[Result "0-1"]
[ECO "A41"]
[WhiteElo "1705"]
[BlackElo "2069"]
[Annotator "NA"]
[PlyCount "120"]
[EventDate "2018.??.??"]
[EventCountry "POL"]
[SourceTitle "playchess.com"]
[Source "ChessBase"]
[SourceQuality "1"]
[WhiteTeam "Finland"]
[BlackTeam "Scotland"]
[WhiteTeamCountry "FIN"]
[BlackTeamCountry "SCO"]
[TimeControl "40/5400+30:1800+30"]

1. d4 {[%emt 0:00:00]} d6 {[%emt 0:00:12]} 2. c4 {[%emt 0:00:00]} e5 {[%emt 0:00:28]} 3. dxe5 {[%emt 0:00:07]} dxe5 {[%emt 0:00:08]} 4. Qxd8+ {[%emt 0:00:27]} Kxd8 {[%emt 0:00:06]} 5. e4 {[%emt 0:00:27]} Nc6 {[%emt 0:03:29]} 6. a3 {[%emt 0:01:08]} Nd4 {[%emt 0:01:32]} 7. Kd1 {[%emt 0:01:28]} Nb3 {[%emt 0:05:19]} 8. Ra2 {[%emt 0:00:21]} Bc5 {[%emt 0:04:09]} 9. f3 {[%emt 0:00:51]} Nxc1 {[%emt 0:02:08]} 10. Kxc1 {[%emt 0:00:19]} Be6 {[%emt 0:02:45]} 11. Nc3 {[%emt 0:00:16]} c6 {[%emt 0:00:27]} 12. Bd3 {[%emt 0:00:41]} Kc7 {[%emt 0:00:35]} 13. b3 {[%emt 0:00:52]} Rd8 {[%emt 0:00:30]} 14. Be2 {[%emt 0:01:13]} Nf6 {[%emt 0:02:54]} 15. Nd1 {[%emt 0:00:33]} Rd4 {[%emt 0:02:16]} 16. b4 {[%emt 0:01:40]} Be7 {[%emt 0:00:25]} 17. Rc2 {[%emt 0:00:39]} a5 {[%emt 0:01:44]} 18. Rd2 {[%emt 0:06:39]} Rxd2 {[%emt 0:02:46]} 19. Kxd2 {[%emt 0:00:18]} axb4 {[%emt 0:00:19]} 20. a4 {[%emt 0:01:01]} Nd7 {[%emt 0:01:53]} 21. Nb2 {[%emt 0:00:44]} Nc5 {[%emt 0:00:19]} 22. Bd1 {[%emt 0:01:35]} Rd8+ {[%emt 0:07:39]} 23. Kc2 {[%emt 0:03:27]} b3+ {[%emt 0:01:15]} 24. Kb1 {[%emt 0:00:18]} Nd3 {[%emt 0:07:23]} 25. Ne2 {[%emt 0:00:56]} Nf2 {[%emt 0:01:18]} 26. Rf1 {[%emt 0:00:52]} Nxd1 {[%emt 0:00:09]} 27. Rxd1 {[%emt 0:01:56]} Rxd1+ {[%emt 0:00:23]} 28. Nxd1 {[%emt 0:00:37]} Bxc4 {[%emt 0:00:42]} 29. Nc1 {[%emt 0:01:40]} Ba3 {[%emt 0:07:57]} 30. Nb2 {[%emt 0:00:16]} Bf1 {[%emt 0:01:54]} 31. g3 {[%emt 0:00:35]} Bg2 {[%emt 0:00:18]} 32. Nxb3 {[%emt 0:00:42]} Bxb2 {[%emt 0:08:48]} 33. Kxb2 {[%emt 0:00:25]} Bxf3 {[%emt 0:00:14]} 34. Nd2 {[%emt 0:00:19]} Bd1 {[%emt 0:01:48]} 35. Ka3 {[%emt 0:00:16]} c5 {[%emt 0:01:48]} 36. Nc4 {[%emt 0:01:27]} f6 {[%emt 0:00:27]} 37. Nd2 {[%emt 0:00:14]} Kc6 {[%emt 0:01:51]} 38. Nc4 {[%emt 0:00:55]} Bc2 {[%emt 0:02:28]} 39. Nd2 {[%emt 0:00:37]} b6 {[%emt 0:01:08]} 40. h3 {[%emt 0:00:00]} h5 {[%emt 0:02:31]} 41. h4 {[%emt 0:01:48]} g6 {[%emt 0:00:26]} 42. a5 {[%emt 0:01:26]} bxa5 {[%emt 0:00:52]} 43. Kb2 {[%emt 0:00:14]} Bd3 {[%emt 0:00:27]} 44. Kc3 {[%emt 0:00:25]} Be2 {[%emt 0:00:09]} 45. Nb3 {[%emt 0:02:18]} Kb5 {[%emt 0:01:42]} 46. Nc1 {[%emt 0:00:21]} Bc4 {[%emt 0:00:32]} 47. Kc2 {[%emt 0:01:56]} Kb4 {[%emt 0:00:18]} 48. Kb2 {[%emt 0:01:33]} a4 {[%emt 0:00:20]} 49. Kc2 {[%emt 0:00:11]} a3 {[%emt 0:00:16]} 50. Kb1 {[%emt 0:01:27]} Kc3 {[%emt 0:00:20]} 51. Ka1 {[%emt 0:00:37]} Kd2 {[%emt 0:01:19]} 52. Kb1 {[%emt 0:00:48]} Bd3+ {[%emt 0:00:43]} 53. Nxd3 {[%emt 0:00:44]} Kxd3 {[%emt 0:00:07]} 54. Ka2 {[%emt 0:00:15]} c4 {[%emt 0:00:10]} 55. Kxa3 {[%emt 0:01:18]} c3 {[%emt 0:00:12]} 56. Kb3 {[%emt 0:00:49]} c2 {[%emt 0:00:11]} 57. Kb2 {[%emt 0:00:13]} Kd2 {[%emt 0:00:07]} 58. Ka2 {[%emt 0:00:26]} c1=Q {[%emt 0:00:45]} 59. g4 {[%emt 0:00:03]} Kc3 {[%emt 0:00:15]} 60. gxh5 {[%emt 0:00:36]} Qb2# 0-1